[Event "IV Elllobregat Open Chess Tmnt"]
[Site "Sant Boi de Llobregat, Spain"]
[Date "2023.12.03"]
[Round "4.47"]
[White "Kaasen, Tor Fredrik"]
[Black "Ohler, Julius"]
[Result "1-0"]
[TimeControl "90min/40moves + 15min/end + 30sec from move 1"]
[WhiteFideId "1516647"]
[BlackFideId "16238982"]
[WhiteElo "2471"]
[BlackElo "2273"]

1. Nf3 {[%clk 01:28:34]} {[%emt 00:02:17]} d5 {[%clk 01:30:50]} {[%emt
00:00:19]} 2. d4 {[%clk 01:28:42]} {[%emt 00:00:22]} Bf5 {[%clk 01:30:37]}
{[%emt 00:00:43]} 3. c4 {[%clk 01:27:45]} {[%emt 00:01:28]} e6 {[%clk
01:31:02]} {[%emt 00:00:04]} 4. Nc3 {[%clk 01:27:05]} {[%emt 00:01:10]} c6
{[%clk 01:25:48]} {[%emt 00:05:45]} 5. Qb3 {[%clk 01:25:53]} {[%emt 00:01:41]}
Qb6 {[%clk 01:23:46]} {[%emt 00:02:32]} 6. c5 {[%clk 01:22:54]} {[%emt
00:03:29]} Qc7 {[%clk 01:22:21]} {[%emt 00:01:55]} 7. Bf4 {[%clk 01:20:59]}
{[%emt 00:02:24]} Qc8 {[%clk 01:22:49]} {[%emt 00:00:03]} 8. Nh4 {[%clk
01:19:07]} {[%emt 00:02:20]} Ne7 {[%clk 01:17:38]} {[%emt 00:05:42]} 9. e3
{[%clk 01:14:42]} {[%emt 00:04:53]} Ng6 {[%clk 01:15:01]} {[%emt 00:03:09]} 10.
Nxf5 {[%clk 01:13:25]} {[%emt 00:01:47]} exf5 {[%clk 01:14:36]} {[%emt
00:00:56]} 11. Bg3 {[%clk 01:12:35]} {[%emt 00:01:16]} Nd7 {[%clk 01:09:31]}
{[%emt 00:05:38]} 12. Bd3 {[%clk 01:09:00]} {[%emt 00:04:05]} Nf6 {[%clk
01:07:59]} {[%emt 00:02:02]} 13. f3 {[%clk 01:07:50]} {[%emt 00:01:37]} Nh5
{[%clk 01:01:14]} {[%emt 00:07:18]} 14. Bf2 {[%clk 01:01:13]} {[%emt 00:07:07]}
Be7 {[%clk 01:00:04]} {[%emt 00:01:41]} 15. g3 {[%clk 00:54:29]} {[%emt
00:07:11]} Bd8 {[%clk 00:56:29]} {[%emt 00:04:07]} 16. Qc2 {[%clk 00:46:07]}
{[%emt 00:08:52]} Ne7 {[%clk 00:56:19]} {[%emt 00:00:40]} 17. h3 {[%clk
00:45:06]} {[%emt 00:01:30]} g6 {[%clk 00:53:51]} {[%emt 00:02:59]} 18. g4
{[%clk 00:42:37]} {[%emt 00:02:59]} Ng7 {[%clk 00:54:06]} {[%emt 00:00:15]} 19.
O-O-O {[%clk 00:42:04]} {[%emt 00:01:03]} O-O {[%clk 00:51:19]} {[%emt
00:03:16]} 20. gxf5 {[%clk 00:34:54]} {[%emt 00:07:41]} Nexf5 {[%clk 00:51:38]}
{[%emt 00:00:11]} 21. h4 {[%clk 00:35:05]} {[%emt 00:00:19]} h5 {[%clk
00:46:38]} {[%emt 00:05:30]} 22. e4 {[%clk 00:18:06]} {[%emt 00:17:29]} dxe4
{[%clk 00:44:55]} {[%emt 00:02:13]} 23. fxe4 {[%clk 00:18:30]} {[%emt
00:00:06]} Nh6 {[%clk 00:45:06]} {[%emt 00:00:18]} 24. e5 {[%clk 00:13:24]}
{[%emt 00:05:36]} b6 {[%clk 00:37:59]} {[%emt 00:07:38]} 25. Ne4 {[%clk
00:12:49]} {[%emt 00:01:04]} bxc5 {[%clk 00:29:09]} {[%emt 00:09:21]} 26. Nd6
{[%clk 00:10:20]} {[%emt 00:02:59]} Qg4 {[%clk 00:28:43]} {[%emt 00:00:56]} 27.
Qd2 {[%clk 00:09:24]} {[%emt 00:01:25]} Nhf5 {[%clk 00:24:02]} {[%emt
00:05:12]} 28. Rdg1 {[%clk 00:06:58]} {[%emt 00:02:56]} Qf3 {[%clk 00:23:17]}
{[%emt 00:01:14]} 29. Be4 {[%clk 00:06:52]} {[%emt 00:00:36]} Ba5 {[%clk
00:23:43]} {[%emt 00:00:04]} 30. Bxf3 {[%clk 00:06:47]} {[%emt 00:00:35]} Bxd2+
{[%clk 00:24:09]} {[%emt 00:00:05]} 31. Kxd2 {[%clk 00:07:12]} {[%emt
00:00:05]} cxd4 {[%clk 00:24:33]} {[%emt 00:00:05]} 32. Nxf5 {[%clk 00:06:13]}
{[%emt 00:01:29]} Nxf5 {[%clk 00:24:58]} {[%emt 00:00:06]} 33. Be4 {[%clk
00:06:38]} {[%emt 00:00:05]} 1-0

[Event "IV Elllobregat Open Chess Tmnt"]
[Site "Sant Boi de Llobregat, Spain"]
[Date "2023.12.03"]
[Round "4.48"]
[White "Habans Aguerrea, Javier"]
[Black "Garcia Ramos, Daniel"]
[Result "1/2-1/2"]
[TimeControl "90min/40moves + 15min/end + 30sec from move 1"]
[WhiteFideId "24524689"]
[BlackFideId "32010311"]
[WhiteElo "2345"]
[BlackElo "2461"]

1. c4 {[%clk 01:30:54]} {[%emt 00:00:06]} e6 {[%clk 01:28:59]} {[%emt
00:02:01]} 2. g3 {[%clk 01:31:11]} {[%emt 00:00:12]} Nf6 {[%clk 01:29:21]}
{[%emt 00:00:10]} 3. Bg2 {[%clk 01:31:30]} {[%emt 00:00:10]} d5 {[%clk
01:29:45]} {[%emt 00:00:06]} 4. Nf3 {[%clk 01:31:52]} {[%emt 00:00:07]} Be7
{[%clk 01:29:39]} {[%emt 00:00:37]} 5. d4 {[%clk 01:31:53]} {[%emt 00:00:29]}
O-O {[%clk 01:29:58]} {[%emt 00:00:11]} 6. O-O {[%clk 01:32:04]} {[%emt
00:00:20]} Nbd7 {[%clk 01:29:59]} {[%emt 00:00:28]} 7. Qc2 {[%clk 01:31:47]}
{[%emt 00:00:46]} a5 {[%clk 01:29:51]} {[%emt 00:00:39]} 8. Nbd2 {[%clk
01:27:56]} {[%emt 00:04:21]} c5 {[%clk 01:22:30]} {[%emt 00:07:51]} 9. dxc5
{[%clk 01:14:49]} {[%emt 00:13:37]} Nxc5 {[%clk 01:21:46]} {[%emt 00:01:13]} 10.
b3 {[%clk 01:14:02]} {[%emt 00:01:18]} Bd7 {[%clk 01:08:06]} {[%emt 00:14:10]}
11. Bb2 {[%clk 01:11:09]} {[%emt 00:03:23]} Rc8 {[%clk 01:04:09]} {[%emt
00:04:27]} 12. Bd4 {[%clk 00:56:31]} {[%emt 00:15:08]} b5 {[%clk 00:58:10]}
{[%emt 00:06:29]} 13. cxd5 {[%clk 00:56:16]} {[%emt 00:00:45]} Nxd5 {[%clk
00:58:21]} {[%emt 00:00:19]} 14. Qb2 {[%clk 00:56:03]} {[%emt 00:00:43]} f6
{[%clk 00:57:31]} {[%emt 00:01:21]} 15. Rac1 {[%clk 00:51:16]} {[%emt
00:05:16]} Be8 {[%clk 00:46:34]} {[%emt 00:11:27]} 16. Rfd1 {[%clk 00:46:50]}
{[%emt 00:04:55]} Bf7 {[%clk 00:46:07]} {[%emt 00:00:58]} 17. Nf1 {[%clk
00:38:39]} {[%emt 00:08:40]} Qb6 {[%clk 00:34:11]} {[%emt 00:12:27]} 18. Ne3
{[%clk 00:37:05]} {[%emt 00:02:03]} Nb4 {[%clk 00:29:55]} {[%emt 00:04:46]} 19.
Nc2 {[%clk 00:33:10]} {[%emt 00:04:25]} Nxc2 {[%clk 00:26:06]} {[%emt
00:04:20]} 20. Rxc2 {[%clk 00:33:08]} {[%emt 00:00:31]} Bg6 {[%clk 00:25:58]}
{[%emt 00:00:38]} 21. Rcc1 {[%clk 00:32:43]} {[%emt 00:00:55]} Rfd8 {[%clk
00:25:34]} {[%emt 00:00:54]} 22. Be3 {[%clk 00:31:45]} {[%emt 00:01:28]} Be4
{[%clk 00:21:04]} {[%emt 00:05:00]} 23. Rxd8+ {[%clk 00:23:19]} {[%emt
00:08:56]} Qxd8 {[%clk 00:20:19]} {[%emt 00:01:16]} 24. Nd4 {[%clk 00:22:44]}
{[%emt 00:01:05]} Bxg2 {[%clk 00:18:50]} {[%emt 00:01:58]} 25. Kxg2 {[%clk
00:23:12]} {[%emt 00:00:02]} Qd5+ {[%clk 00:13:22]} {[%emt 00:05:59]} 26. Kg1
{[%clk 00:23:22]} {[%emt 00:00:19]} b4 {[%clk 00:13:17]} {[%emt 00:00:36]} 27.
Qc2 {[%clk 00:22:18]} {[%emt 00:01:33]} Rd8 {[%clk 00:12:20]} {[%emt 00:01:28]}
28. Qc4 {[%clk 00:22:25]} {[%emt 00:00:23]} Bf8 {[%clk 00:09:27]} {[%emt
00:03:23]} 29. Qb5 {[%clk 00:14:22]} {[%emt 00:08:32]} Ne4 {[%clk 00:08:21]}
{[%emt 00:01:36]} 30. Qxd5 {[%clk 00:14:03]} {[%emt 00:00:49]} exd5 {[%clk
00:07:27]} {[%emt 00:01:24]} 31. Ne6 {[%clk 00:14:01]} {[%emt 00:00:32]} Re8
{[%clk 00:04:02]} {[%emt 00:03:54]} 32. Nc7 {[%clk 00:14:03]} {[%emt 00:00:30]}
Rd8 {[%clk 00:04:13]} {[%emt 00:00:18]} 33. Ne6 {[%clk 00:13:14]} {[%emt
00:01:20]} Re8 {[%clk 00:04:38]} {[%emt 00:00:05]} 34. Nc7 {[%clk 00:10:35]}
{[%emt 00:03:09]} Rd8 {[%clk 00:04:46]} {[%emt 00:00:21]} 35. Bb6 {[%clk
00:06:40]} {[%emt 00:04:26]} Nc3 {[%clk 00:03:28]} {[%emt 00:01:48]} 36. Rc2
{[%clk 00:07:02]} {[%emt 00:00:07]} a4 {[%clk 00:02:13]} {[%emt 00:01:46]} 37.
Bd4 {[%clk 00:06:59]} {[%emt 00:00:33]} axb3 {[%clk 00:01:55]} {[%emt
00:00:49]} 38. axb3 {[%clk 00:07:22]} {[%emt 00:00:06]} Ne4 {[%clk 00:01:25]}
{[%emt 00:01:00]} 39. f3 {[%clk 00:05:15]} {[%emt 00:02:37]} Ng5 {[%clk
00:00:35]} {[%emt 00:01:20]} 40. h4 {[%clk 00:19:32]} {[%emt 00:01:12]} Nf7
{[%clk 00:15:54]} {[%emt 00:00:12]} 41. Ne6 {[%clk 00:18:40]} {[%emt 00:01:21]}
Re8 {[%clk 00:14:40]} {[%emt 00:01:43]} 42. Nxf8 {[%clk 00:18:10]} {[%emt
00:01:01]} Rxf8 {[%clk 00:14:21]} {[%emt 00:00:49]} 43. Rc5 {[%clk 00:18:18]}
{[%emt 00:00:22]} Rd8 {[%clk 00:14:36]} {[%emt 00:00:15]} 44. Rb5 {[%clk
00:18:13]} {[%emt 00:00:36]} Ne5 {[%clk 00:14:45]} {[%emt 00:00:20]} 45. Bxe5
{[%clk 00:13:32]} {[%emt 00:05:12]} fxe5 {[%clk 00:15:06]} {[%emt 00:00:09]} 46.
Kf2 {[%clk 00:12:34]} {[%emt 00:01:27]} Kf7 {[%clk 00:11:22]} {[%emt 00:04:14]}
47. g4 {[%clk 00:12:19]} {[%emt 00:00:45]} d4 {[%clk 00:06:38]} {[%emt
00:05:15]} 48. Rxe5 {[%clk 00:06:51]} {[%emt 00:05:57]} d3 {[%clk 00:06:54]}
{[%emt 00:00:15]} 49. Ke1 {[%clk 00:06:05]} {[%emt 00:01:15]} dxe2 {[%clk
00:06:05]} {[%emt 00:01:19]} 50. Kxe2 {[%clk 00:06:20]} {[%emt 00:00:16]} Rc8
{[%clk 00:06:26]} {[%emt 00:00:10]} 51. Kf2 {[%clk 00:04:55]} {[%emt 00:01:54]}
Rc2+ {[%clk 00:05:48]} {[%emt 00:01:07]} 52. Re2 {[%clk 00:05:19]} {[%emt
00:00:06]} Rc3 {[%clk 00:06:13]} {[%emt 00:00:06]} 53. Re3 {[%clk 00:05:44]}
{[%emt 00:00:05]} Rc2+ {[%clk 00:06:36]} {[%emt 00:00:07]} 54. Kg3 {[%clk
00:06:08]} {[%emt 00:00:05]} Rb2 {[%clk 00:06:11]} {[%emt 00:00:56]} 55. h5
{[%clk 00:06:14]} {[%emt 00:00:23]} Kf6 {[%clk 00:06:22]} {[%emt 00:00:20]} 56.
Kf4 {[%clk 00:06:25]} {[%emt 00:00:19]} h6 {[%clk 00:04:36]} {[%emt 00:02:16]}
57. Rd3 {[%clk 00:05:36]} {[%emt 00:01:19]} Ke6 {[%clk 00:04:11]} {[%emt
00:00:55]} 58. Ke4 {[%clk 00:05:58]} {[%emt 00:00:07]} Rb1 {[%clk 00:03:33]}
{[%emt 00:01:09]} 59. Re3 {[%clk 00:05:32]} {[%emt 00:00:56]} Kf6 {[%clk
00:02:29]} {[%emt 00:01:34]} 60. Kf4 {[%clk 00:02:51]} {[%emt 00:03:09]} Rb2
{[%clk 00:02:50]} {[%emt 00:00:11]} 61. Kg3 {[%clk 00:03:05]} {[%emt 00:00:15]}
Rb1 {[%clk 00:02:23]} {[%emt 00:00:57]} 62. Rd3 {[%clk 00:02:59]} {[%emt
00:00:36]} Ke5 {[%clk 00:02:10]} {[%emt 00:00:43]} 63. Kf2 {[%clk 00:03:21]}
{[%emt 00:00:08]} Kf6 {[%clk 00:01:31]} {[%emt 00:01:09]} 64. Ke3 {[%clk
00:03:49]} {[%emt 00:00:02]} Rb2 {[%clk 00:00:56]} {[%emt 00:01:06]} 65. Ke4
{[%clk 00:03:14]} {[%emt 00:01:05]} Ke6 {[%clk 00:01:04]} {[%emt 00:00:22]} 66.
f4 {[%clk 00:00:42]} {[%emt 00:03:02]} Rb1 {[%clk 00:00:37]} {[%emt 00:00:57]}
67. Rg3 {[%clk 00:00:39]} {[%emt 00:00:31]} Re1+ {[%clk 00:00:42]} {[%emt
00:00:26]} 68. Re3 {[%clk 00:00:53]} {[%emt 00:00:17]} Rd1 {[%clk 00:00:38]}
{[%emt 00:00:33]} 69. g5 {[%clk 00:00:42]} {[%emt 00:00:41]} hxg5 {[%clk
00:00:50]} {[%emt 00:00:19]} 70. fxg5 {[%clk 00:01:10]} {[%emt 00:00:02]} Rh1
{[%clk 00:00:54]} {[%emt 00:00:25]} 71. Kf4+ {[%clk 00:01:32]} {[%emt
00:00:08]} Kf7 {[%clk 00:01:15]} {[%emt 00:00:06]} 72. Kg4 {[%clk 00:01:56]}
{[%emt 00:00:09]} Rb1 {[%clk 00:00:43]} {[%emt 00:01:03]} 73. Rf3+ {[%clk
00:02:11]} {[%emt 00:00:14]} Kg8 {[%clk 00:00:47]} {[%emt 00:00:26]} 74. Kf5
{[%clk 00:01:50]} {[%emt 00:00:51]} Kh7 {[%clk 00:00:59]} {[%emt 00:00:18]} 75.
Rh3 {[%clk 00:01:48]} {[%emt 00:00:32]} Rf1+ {[%clk 00:00:57]} {[%emt
00:00:32]} 76. Kg4 {[%clk 00:02:07]} {[%emt 00:00:11]} Rg1+ {[%clk 00:01:05]}
{[%emt 00:00:23]} 77. Rg3 {[%clk 00:02:31]} {[%emt 00:00:06]} Rh1 {[%clk
00:01:20]} {[%emt 00:00:15]} 78. Rg2 {[%clk 00:02:05]} {[%emt 00:00:55]} Rb1
{[%clk 00:01:39]} {[%emt 00:00:11]} 79. Rg3 {[%clk 00:00:56]} {[%emt 00:01:39]}
Rh1 {[%clk 00:02:03]} {[%emt 00:00:06]} 80. Kf5 {[%clk 00:00:32]} {[%emt
00:00:54]} Rf1+ {[%clk 00:00:38]} {[%emt 00:01:55]} 81. Ke6 {[%clk 00:01:00]}
{[%emt 00:00:02]} Rh1 {[%clk 00:00:48]} {[%emt 00:00:21]} 82. h6 {[%clk
00:00:56]} {[%emt 00:00:34]} gxh6 {[%clk 00:00:36]} {[%emt 00:00:41]} 83. gxh6
{[%clk 00:01:24]} {[%emt 00:00:02]} Rxh6+ {[%clk 00:00:48]} {[%emt 00:00:18]}
84. Kd5 {[%clk 00:01:54]} Rh4 {[%clk 00:00:59]} {[%emt 00:00:18]} 85. Kc5
{[%clk 00:02:22]} {[%emt 00:00:02]} Rf4 {[%clk 00:01:09]} {[%emt 00:00:20]} 86.
Rg5 {[%clk 00:02:09]} {[%emt 00:00:43]} Kh6 {[%clk 00:01:17]} {[%emt 00:00:22]}
87. Rg8 {[%clk 00:02:30]} {[%emt 00:00:09]} Kh7 {[%clk 00:01:34]} {[%emt
00:00:13]} 88. Rg1 {[%clk 00:01:28]} {[%emt 00:01:31]} Kh6 {[%clk 00:01:57]}
{[%emt 00:00:09]} 89. Kb5 {[%clk 00:01:27]} {[%emt 00:00:31]} Kh7 {[%clk
00:02:17]} {[%emt 00:00:10]} 90. Ka5 {[%clk 00:01:32]} {[%emt 00:00:25]} Kh6
{[%clk 00:02:41]} {[%emt 00:00:05]} 91. Rg2 {[%clk 00:00:58]} {[%emt 00:01:04]}
Kh7 {[%clk 00:02:54]} {[%emt 00:00:18]} 92. Kb5 {[%clk 00:01:27]} {[%emt
00:00:01]} Kh6 {[%clk 00:03:15]} {[%emt 00:00:09]} 93. Kc5 {[%clk 00:01:55]}
{[%emt 00:00:02]} Kh7 {[%clk 00:03:32]} {[%emt 00:00:13]} 94. Rd2 {[%clk
00:00:46]} {[%emt 00:01:38]} Kg6 {[%clk 00:03:08]} {[%emt 00:00:53]} 95. Rd4
{[%clk 00:01:10]} {[%emt 00:00:07]} Rf3 {[%clk 00:02:46]} {[%emt 00:00:52]} 96.
Kxb4 {[%clk 00:00:51]} {[%emt 00:00:49]} Kf5 {[%clk 00:03:02]} {[%emt
00:00:14]} 97. Kc4 {[%clk 00:00:43]} {[%emt 00:00:38]} Ke6 {[%clk 00:02:33]}
{[%emt 00:00:58]} 98. b4 {[%clk 00:00:53]} {[%emt 00:00:22]} Rf7 {[%clk
00:02:04]} {[%emt 00:00:58]} 99. b5 {[%clk 00:01:08]} {[%emt 00:00:15]} Rd7
{[%clk 00:02:20]} {[%emt 00:00:15]} 100. Rh4 {[%clk 00:00:32]} {[%emt
00:01:06]} Kd6 {[%clk 00:02:44]} {[%emt 00:00:06]} 101. Rh6+ {[%clk 00:00:56]}
{[%emt 00:00:05]} Kc7 {[%clk 00:03:00]} {[%emt 00:00:14]} 102. Kc5 {[%clk
00:01:24]} {[%emt 00:00:03]} 1/2-1/2

[Event "IV Elllobregat Open Chess Tmnt"]
[Site "Sant Boi de Llobregat, Spain"]
[Date "2023.12.03"]
[Round "4.49"]
[White "Salinas Tomas, Daniel"]
[Black "Akbas, Umut Ata"]
[Result "1-0"]
[TimeControl "90min/40moves + 15min/end + 30sec from move 1"]
[WhiteFideId "24597716"]
[BlackFideId "44572646"]
[WhiteElo "2281"]
[BlackElo "2446"]

1. d4 {[%clk 01:30:57]} {[%emt 00:00:02]} Nf6 {[%clk 01:27:06]} {[%emt
00:03:54]} 2. c4 {[%clk 01:31:09]} {[%emt 00:00:18]} g6 {[%clk 01:27:27]}
{[%emt 00:00:09]} 3. g3 {[%clk 01:31:27]} {[%emt 00:00:11]} Bg7 {[%clk
01:27:38]} {[%emt 00:00:19]} 4. Bg2 {[%clk 01:31:36]} {[%emt 00:00:22]} d5
{[%clk 01:27:46]} {[%emt 00:00:21]} 5. cxd5 {[%clk 01:31:39]} {[%emt 00:00:27]}
Nxd5 {[%clk 01:28:08]} {[%emt 00:00:08]} 6. e4 {[%clk 01:31:30]} {[%emt
00:00:38]} Nb6 {[%clk 01:27:49]} {[%emt 00:00:49]} 7. Ne2 {[%clk 01:31:22]}
{[%emt 00:00:38]} O-O {[%clk 01:19:15]} {[%emt 00:09:04]} 8. O-O {[%clk
01:30:55]} {[%emt 00:00:56]} Nc6 {[%clk 01:18:55]} {[%emt 00:00:51]} 9. d5
{[%clk 01:30:32]} {[%emt 00:00:53]} Na5 {[%clk 01:19:18]} {[%emt 00:00:07]} 10.
Nbc3 {[%clk 01:30:12]} {[%emt 00:00:51]} c6 {[%clk 01:19:26]} {[%emt 00:00:21]}
11. Bf4 {[%clk 01:29:13]} {[%emt 00:01:29]} e5 {[%clk 01:05:42]} {[%emt
00:14:15]} 12. Be3 {[%clk 01:19:14]} {[%emt 00:10:28]} cxd5 {[%clk 00:58:51]}
{[%emt 00:07:21]} 13. exd5 {[%clk 01:16:42]} {[%emt 00:03:02]} Nac4 {[%clk
00:59:01]} {[%emt 00:00:21]} 14. Bc5 {[%clk 01:16:11]} {[%emt 00:01:00]} Re8
{[%clk 00:58:27]} {[%emt 00:01:03]} 15. b3 {[%clk 01:16:09]} {[%emt 00:00:33]}
Nd6 {[%clk 00:57:16]} {[%emt 00:01:41]} 16. a4 {[%clk 01:05:22]} {[%emt
00:11:17]} Bf8 {[%clk 00:51:56]} {[%emt 00:05:49]} 17. Rc1 {[%clk 01:02:14]}
{[%emt 00:03:39]} Bf5 {[%clk 00:48:05]} {[%emt 00:04:20]} 18. a5 {[%clk
00:49:18]} {[%emt 00:13:27]} Nd7 {[%clk 00:41:35]} {[%emt 00:07:01]} 19. Bxd6
{[%clk 00:48:25]} {[%emt 00:01:24]} Bxd6 {[%clk 00:41:55]} {[%emt 00:00:10]} 20.
Nb5 {[%clk 00:48:28]} {[%emt 00:00:25]} Nc5 {[%clk 00:38:00]} {[%emt 00:04:25]}
21. Nxd6 {[%clk 00:48:09]} {[%emt 00:00:49]} Qxd6 {[%clk 00:38:22]} {[%emt
00:00:08]} 22. Nc3 {[%clk 00:48:29]} {[%emt 00:00:10]} Qd7 {[%clk 00:21:03]}
{[%emt 00:17:49]} 23. b4 {[%clk 00:47:04]} {[%emt 00:01:55]} Na6 {[%clk
00:18:44]} {[%emt 00:02:49]} 24. Qb3 {[%clk 00:41:15]} {[%emt 00:06:19]} Red8
{[%clk 00:07:50]} {[%emt 00:11:23]} 25. Rfe1 {[%clk 00:40:08]} {[%emt
00:01:37]} Qd6 {[%clk 00:07:13]} {[%emt 00:01:08]} 26. g4 {[%clk 00:31:40]}
{[%emt 00:08:58]} Bd7 {[%clk 00:07:11]} {[%emt 00:00:33]} 27. Ne4 {[%clk
00:29:04]} {[%emt 00:03:06]} Qxb4 {[%clk 00:07:33]} {[%emt 00:00:07]} 28. Qh3
{[%clk 00:29:22]} {[%emt 00:00:11]} h5 {[%clk 00:04:42]} {[%emt 00:03:22]} 29.
Qe3 {[%clk 00:26:44]} {[%emt 00:03:09]} Qf8 {[%clk 00:03:16]} {[%emt 00:01:55]}
30. Nf6+ {[%clk 00:26:16]} {[%emt 00:00:57]} Kh8 {[%clk 00:03:12]} {[%emt
00:00:34]} 31. Qxe5 {[%clk 00:24:50]} {[%emt 00:01:56]} Qg7 {[%clk 00:02:55]}
{[%emt 00:00:47]} 32. gxh5 {[%clk 00:25:06]} {[%emt 00:00:15]} Bf5 {[%clk
00:03:18]} {[%emt 00:00:07]} 33. d6 {[%clk 00:23:45]} {[%emt 00:01:51]} Nb4
{[%clk 00:01:21]} {[%emt 00:02:27]} 34. h6 {[%clk 00:19:03]} {[%emt 00:05:12]}
Qxh6 {[%clk 00:01:38]} {[%emt 00:00:12]} 35. Nd5+ {[%clk 00:19:14]} {[%emt
00:00:20]} Qg7 {[%clk 00:01:37]} {[%emt 00:00:32]} 36. Qxg7+ {[%clk 00:18:07]}
{[%emt 00:01:37]} Kxg7 {[%clk 00:02:01]} {[%emt 00:00:05]} 37. Nxb4 {[%clk
00:18:34]} {[%emt 00:00:04]} Rxd6 {[%clk 00:02:26]} {[%emt 00:00:05]} 38. a6
{[%clk 00:18:24]} {[%emt 00:00:40]} Rb8 {[%clk 00:01:48]} {[%emt 00:01:07]} 39.
Bxb7 {[%clk 00:17:21]} {[%emt 00:01:33]} Rd4 {[%clk 00:01:57]} {[%emt
00:00:21]} 40. Nc6 {[%clk 00:27:09]} {[%emt 00:05:42]} Rg4+ {[%clk 00:17:19]}
{[%emt 00:00:07]} 41. Kh1 {[%clk 00:27:29]} {[%emt 00:00:10]} Rh8 {[%clk
00:17:42]} {[%emt 00:00:07]} 42. Nxa7 {[%clk 00:26:37]} {[%emt 00:01:22]} Rgh4
{[%clk 00:16:03]} {[%emt 00:02:09]} 43. Re3 {[%clk 00:25:17]} {[%emt 00:01:50]}
Rxh2+ {[%clk 00:15:27]} {[%emt 00:01:06]} 44. Kg1 {[%clk 00:25:46]} R2h4 {[%clk
00:15:55]} {[%emt 00:00:03]} 45. Nb5 {[%clk 00:25:26]} {[%emt 00:00:51]} Rg4+
{[%clk 00:13:26]} {[%emt 00:03:00]} 46. Rg3 {[%clk 00:25:47]} {[%emt 00:00:09]}
Rb4 {[%clk 00:13:34]} {[%emt 00:00:22]} 47. a7 {[%clk 00:25:47]} {[%emt
00:00:31]} Rxb5 {[%clk 00:12:08]} {[%emt 00:01:55]} 48. a8=Q {[%clk 00:26:07]}
{[%emt 00:00:10]} Rxa8 {[%clk 00:12:33]} 49. Bxa8 {[%clk 00:26:29]} {[%emt
00:00:12]} Be6 {[%clk 00:12:58]} {[%emt 00:00:04]} 50. Re1 {[%clk 00:25:31]}
{[%emt 00:01:29]} Ra5 {[%clk 00:12:10]} {[%emt 00:01:18]} 51. Be4 {[%clk
00:25:25]} {[%emt 00:00:35]} Kf6 {[%clk 00:12:18]} {[%emt 00:00:22]} 52. Ree3
{[%clk 00:25:00]} {[%emt 00:00:55]} Rb5 {[%clk 00:11:50]} {[%emt 00:00:58]} 53.
Bd3 {[%clk 00:21:27]} {[%emt 00:04:02]} Rc5 {[%clk 00:12:05]} {[%emt 00:00:16]}
54. Kf1 {[%clk 00:20:21]} {[%emt 00:01:35]} Rc1+ {[%clk 00:11:44]} {[%emt
00:00:51]} 55. Ke2 {[%clk 00:20:34]} {[%emt 00:00:17]} Rc5 {[%clk 00:12:11]}
{[%emt 00:00:04]} 56. Kd2 {[%clk 00:19:58]} {[%emt 00:01:06]} Bd5 {[%clk
00:10:31]} {[%emt 00:02:09]} 57. Be4 {[%clk 00:18:50]} {[%emt 00:01:39]} Be6
{[%clk 00:10:33]} {[%emt 00:00:28]} 58. Bc2 {[%clk 00:18:09]} {[%emt 00:01:09]}
Rd5+ {[%clk 00:10:12]} {[%emt 00:00:52]} 59. Ke1 {[%clk 00:18:06]} {[%emt
00:00:32]} Rd7 {[%clk 00:09:33]} {[%emt 00:01:10]} 60. Rgf3+ {[%clk 00:18:16]}
{[%emt 00:00:21]} Kg7 {[%clk 00:09:53]} {[%emt 00:00:10]} 61. Rxe6 {[%clk
00:18:10]} {[%emt 00:00:36]} fxe6 {[%clk 00:10:06]} {[%emt 00:00:17]} 62. Rg3
{[%clk 00:18:34]} {[%emt 00:00:05]} e5 {[%clk 00:10:23]} {[%emt 00:00:13]} 63.
Rxg6+ {[%clk 00:18:47]} {[%emt 00:00:16]} Kf7 {[%clk 00:10:47]} {[%emt
00:00:06]} 64. Rc6 {[%clk 00:19:07]} {[%emt 00:00:10]} Rb7 {[%clk 00:11:05]}
{[%emt 00:00:12]} 65. Ke2 {[%clk 00:19:24]} {[%emt 00:00:13]} Rb4 {[%clk
00:11:30]} {[%emt 00:00:06]} 66. Ke3 {[%clk 00:19:45]} {[%emt 00:00:09]} Ke7
{[%clk 00:11:17]} {[%emt 00:00:44]} 67. Bf5 {[%clk 00:19:32]} {[%emt 00:00:42]}
Kf7 {[%clk 00:11:35]} {[%emt 00:00:12]} 68. f3 {[%clk 00:19:29]} {[%emt
00:00:33]} Ra4 {[%clk 00:11:02]} {[%emt 00:01:04]} 69. Re6 {[%clk 00:19:20]}
{[%emt 00:00:38]} Ra3+ {[%clk 00:11:04]} {[%emt 00:00:28]} 70. Ke4 {[%clk
00:19:42]} {[%emt 00:00:08]} Ra4+ {[%clk 00:11:31]} {[%emt 00:00:04]} 71. Kxe5
{[%clk 00:19:58]} {[%emt 00:00:13]} Ra5+ {[%clk 00:11:58]} {[%emt 00:00:04]} 72.
Kf4 {[%clk 00:20:16]} {[%emt 00:00:11]} 1-0